bitfinex/quotes_ETHUSD_20260213
["timestamp","ask_amount","ask_price","bid_price","bid_amount"]
[1771002556466,2.80296296,2053.6,2052.4,1.21808614]
[1771002557865,1.69296296,2053.6,2052.4,1.21808614]
[1771002558081,2.80596296,2053.6,2052.4,1.21808614]
[1771002558362,0.47555335,2053.3,2052.3,2.25314243]
[1771002558672,1.113,2053.2,2052.3,2.25313398]
[1771002558857,1.21740961,2053.6,2052.3,2.25313398]
[1771002558858,1.69296296,2053.6,2052.3,2.25313398]
[1771002559064,1.113,2053.5,2052.3,2.25313398]
[1771002559366,1.113,2053.4,2052.3,2.73152344]
[1771002560192,1.21755223,2053.3,2052.3,2.73152344]
[1771002560492,1.21755223,2053.3,2052.3,2.25313398]
[1771002561269,2.33052948,2053.4,2052.3,2.25313398]
[1771002561694,2.33052948,2053.4,2052.3,2.73152344]
[1771002561899,2.33052948,2053.4,2052.5,0.001]
[1771002562069,2.33252948,2053.4,2052.5,0.001]
[1771002562607,2.80808283,2053.4,2052.5,0.001]
[1771002562978,2.33252948,2053.4,2052.5,0.001]
[1771002563174,1.21952948,2053.4,2052.5,0.001]
[1771002563375,1.69508283,2053.4,2052.5,0.001]
[1771002563608,10.48467794,2053.3,2052.3,2.2531425]
[1771002563781,10.00912459,2053.3,2052.3,2.25313474]
[1771002564382,1.21761153,2053.2,2052.3,2.25313474]
[1771002564981,1.114,2053.3,2052.4,0.47838946]
[1771002565180,1.114,2053.3,2052.3,2.25313474]
[1771002565181,1.58955335,2053.3,2052.3,2.25313474]
[1771002565383,0.47555335,2053.2,2052.3,2.25313474]
[1771002565990,0.47555335,2053.2,2052.3,1.035]
[1771002566410,1.21767083,2053.1,2052.3,1.035]
[1771002567014,1.21766037,2053.2,2052.3,2.25314464]
[1771002567381,1.69321372,2053.2,2052.3,2.25313554]
[1771002567615,1.69321372,2053.2,2052.3,1.035]
[1771002567813,0.47555335,2053.1,2052.3,1.035]
[1771002568010,0.47555335,2053.1,2052.3,2.25313231]
[1771002568390,1.21766037,2053.2,2052.3,2.73152177]
[1771002571121,1.21950105,2053.4,2052.4,0.64853273]
[1771002572616,0.002,2053.4,2052.5,1.21802679]
[1771002572839,1.109,2053.3,2052.1,0.64853273]
[1771002573489,0.002,2053.4,2052.3,0.64853273]
[1771002573822,0.002,2053.4,2052.5,0.64853273]
[1771002574022,0.002,2053.4,2052.6,1.032]
[1771002574611,0.002,2053.4,2052.7,1.21790812]
[1771002574824,0.002,2053.8,2053.0,0.64853273]
[1771002575022,0.002,2053.8,2053.2,0.64853273]
[1771002576698,0.002,2053.8,2053.4,0.64853273]
[1771002577528,0.002,2053.8,2053.3,1.21755223]
[1771002577700,0.002,2053.8,2053.1,1.21767083]
[1771002577897,0.002,2053.8,2053.0,1.21770321]
[1771002578155,9.91824254,2053.8,2052.9,1.033]
[1771002578358,9.91824254,2053.8,2052.9,2.25078373]
[1771002578655,0.67316928,2053.8,2052.9,2.25078373]
[1771002578931,1.21731508,2053.7,2052.9,2.25078373]
[1771002579108,1.21731508,2053.7,2052.9,1.033]
[1771002579313,1.88848436,2053.7,2052.9,1.033]
[1771002579917,1.21731508,2053.7,2052.9,2.25078518]
[1771002581342,1.21731508,2053.7,2052.9,1.033]
[1771002581718,1.21731508,2053.7,2052.9,2.25077704]
[1771002582112,1.21731508,2053.7,2052.9,1.033]
[1771002582318,1.21731508,2053.7,2052.9,2.25078813]
[1771002582520,1.21731508,2053.7,2052.9,1.033]
[1771002582923,1.88848436,2053.7,2052.9,1.033]
[1771002583669,0.67116928,2053.5,2052.7,0.001]
[1771002585255,0.67116928,2053.5,2052.7,1.21889128]
[1771002585419,1.114,2053.6,2052.7,1.21889128]
[1771002585759,0.67116928,2053.4,2052.7,0.001]
[1771002586445,0.67116928,2053.4,2052.6,0.878]
[1771002587771,1.88872151,2053.3,2052.6,0.878]
[1771002588358,1.88872151,2053.3,2052.5,0.001]
[1771002588359,0.67116928,2053.2,2052.9,0.001]
[1771002588560,0.67116928,2053.1,2052.5,0.001]
[1771002588722,1.78516928,2053.1,2052.6,0.001]
[1771002589053,1.78516928,2053.1,2052.1,2.24826269]
[1771002589552,1.114,2053.1,2052.1,2.89900698]
[1771002589750,2.33167087,2053.1,2052.2,0.65074429]
[1771002590046,1.21765744,2053.2,2052.2,0.65074429]
[1771002590723,1.88882672,2053.2,2052.1,2.24826269]
[1771002590919,1.21765744,2053.2,2052.1,2.89900698]
[1771002591226,0.67116928,2053.1,2052.1,1.03]
[1771002591424,0.67116928,2053.1,2052.1,2.24825662]
[1771002592151,1.21773015,2053.0,2052.1,1.03]
[1771002592467,1.88889943,2053.0,2052.1,1.03]
[1771002592751,1.88889943,2053.0,2052.1,2.24826175]
[1771002592952,3.00289943,2053.0,2052.1,2.24826175]
[1771002593367,3.00289943,2053.0,2052.1,1.03]
[1771002594264,0.67116928,2052.9,2052.1,1.03]
[1771002594460,0.67116928,2052.8,2051.8,2.09742658]
[1771002598940,1.21808614,2052.4,2051.7,1.21850173]
[1771002599340,4.87168178,2052.7,2051.7,1.86924602]
[1771002599561,1.21790812,2052.7,2051.7,2.89724602]
[1771002599933,1.8890774,2052.7,2051.7,2.24650173]
[1771002600256,1.8890774,2052.7,2051.7,1.028]
[1771002600454,1.8890774,2052.7,2051.7,2.24645089]
[1771002600650,1.8890774,2052.7,2051.7,1.029]
[1771002600839,1.8890774,2052.7,2051.7,2.24748579]
[1771002601042,1.21790812,2052.7,2051.8,0.64386879]
[1771002601837,2.3338807,2052.8,2051.8,0.64386879]
[1771002602561,2.3338807,2052.8,2051.7,2.89135458]
[1771002602761,2.3338807,2052.8,2051.8,0.64386879]
[1771002602762,1.2198807,2052.8,2051.8,0.64386879]
[1771002602964,1.21984953,2052.8,2051.8,0.64386879]
[1771002603544,0.002,2052.8,2051.8,0.64386879]
[1771002603944,0.002,2052.8,2051.4,19.25108018]
[1771002603945,0.67339334,2052.5,2050.8,0.64386879]
[1771002604149,0.67339334,2052.5,2051.0,0.64386879]
[1771002604376,1.114,2052.6,2051.0,0.64386879]
[1771002604561,1.21985317,2052.8,2051.4,0.64386879]
[1771002604875,1.21985317,2052.8,2051.6,0.64386879]
[1771002605870,1.21985317,2052.8,2051.7,1.66986879]
[1771002606072,1.21985317,2052.8,2051.8,0.64386879]
[1771002606780,0.002,2052.8,2051.9,1.21838296]
[1771002606968,0.002,2052.8,2051.9,1.86225175]
[1771002607275,0.002,2052.8,2051.9,0.64386879]
[1771002608914,0.67339334,2052.7,2051.4,0.64386879]
[1771002609048,0.002,2052.8,2051.5,3.82]
[1771002609386,0.002,2052.8,2051.6,0.64386879]
[1771002609883,0.002,2052.8,2051.8,0.64386879]
[1771002610046,0.002,2052.8,2052.0,0.64386879]
[1771002610673,0.002,2052.8,2052.1,1.66886879]
[1771002611080,0.002,2052.8,2052.2,1.86207364]
[1771002611678,0.002,2052.8,2052.3,0.64386879]
[1771002612065,0.002,2052.8,2052.2,1.21820485]
[1771002613166,0.002,2052.8,2052.3,0.64386879]
[1771002614178,0.002,2052.6,2052.3,0.64386879]
[1771002614690,0.002,2052.6,2052.0,1.86215123]
[1771002614875,0.002,2052.6,2052.0,2.88915123]
[1771002615194,0.002,2052.6,2052.0,1.027]
[1771002615358,0.002,2052.6,2052.0,2.24531605]
[1771002615559,0.002,2052.6,2052.0,2.88918484]
[1771002616556,0.002,2052.6,2052.1,0.64386879]
[1771002616757,0.002,2052.6,2052.0,1.027]
[1771002617158,0.002,2052.6,2052.0,2.24631522]
[1771002617457,0.002,2052.6,2052.0,1.028]
[1771002617696,0.002,2052.6,2052.0,2.24632336]
[1771002619272,0.002,2052.6,2052.0,2.89019215]
[1771002619795,0.002,2052.6,2052.1,0.64386879]
[1771002621899,0.002,2052.6,2052.1,1.21825274]
[1771002623564,0.002,2052.6,2052.2,0.64386879]
[1771002623788,0.002,2052.6,2052.3,1.21814549]
[1771002623985,0.002,2052.6,2052.2,1.86202611]
[1771002624293,0.002,2052.6,2052.0,1.028]
[1771002624491,0.002,2052.6,2052.0,2.24631688]
[1771002626704,0.002,2052.6,2052.1,0.64386879]
[1771002626876,2.99693287,2053.4,2052.1,0.64386879]
[1771002627206,0.002,2052.4,2052.1,0.64386879]
[1771002627400,2.99693287,2053.4,2052.2,0.64386879]
[1771002628470,2.99693287,2053.4,2052.3,1.21814549]
[1771002628471,0.67339334,2053.3,2052.3,1.21814549]
[1771002629611,0.67339334,2053.3,2052.4,1.035]
[1771002630405,1.21761153,2053.2,2052.4,1.035]
[1771002630702,1.89100487,2053.2,2052.4,1.035]
[1771002630900,1.89100487,2053.2,2052.4,2.25307487]
[1771002632303,1.89100487,2053.2,2052.4,2.253083]
[1771002632680,1.21761153,2053.2,2052.4,2.253083]
[1771002633418,4.87044613,2053.3,2052.4,2.253083]
[1771002633419,1.21761052,2053.3,2052.4,2.253083]
[1771002633575,2.32354251,2053.4,2052.4,2.8385144]
[1771002634003,2.32349635,2053.4,2052.4,2.8385144]
[1771002634713,2.32349635,2053.4,2052.6,1.21796745]
[1771002635912,6.35169085,2053.5,2052.7,0.5854314]
[1771002635913,0.002,2053.5,2052.7,0.5854314]
[1771002636706,0.002,2053.5,2052.8,1.21784879]
[1771002636899,0.002,2053.5,2052.9,1.034]
[1771002637417,0.63553856,2053.5,2052.9,1.034]
[1771002637594,0.002,2053.5,2052.9,1.034]
[1771002638909,0.002,2053.5,2053.0,1.21773015]
[1771002640183,0.002,2053.3,2053.0,1.21773015]
[1771002643037,0.002,2053.3,2052.9,2.25174106]
[1771002643896,0.002,2053.3,2052.9,1.04]
[1771002645229,0.002,2053.3,2053.0,1.21773015]
[1771002646710,0.002,2053.3,2052.9,2.25774521]
[1771002647524,0.002,2053.3,2052.9,2.25778858]
[1771002648034,0.002,2053.3,2052.9,2.25778944]
[1771002650124,0.002,2053.3,2052.9,1.04]
[1771002650443,0.002,2053.3,2052.9,2.25778802]
[1771002651842,0.002,2053.3,2052.9,1.04]
[1771002652137,0.63553856,2053.3,2052.6,0.001]
[1771002652511,0.002,2053.3,2052.6,1.21893805]
[1771002652716,0.002,2053.3,2052.7,0.59493097]
[1771002653312,0.002,2053.3,2052.8,1.81277976]
[1771002653605,0.002,2053.5,2052.8,1.81277976]
[1771002653606,0.002,2053.5,2053.0,0.59493097]
[1771002654524,0.002,2053.5,2053.1,1.048]
[1771002655527,0.002,2053.5,2053.2,1.21761153]
[1771002656313,0.002,2053.5,2053.1,1.048]
[1771002656508,0.002,2053.5,2053.1,2.26567001]
[1771002658239,0.002,2053.5,2053.1,1.048]
[1771002658447,0.002,2053.5,2053.1,2.26566365]
[1771002659340,0.002,2053.5,2053.1,2.26566214]
[1771002661031,0.002,2053.5,2053.1,2.85569787]
[1771002661241,0.002,2053.8,2053.2,0.59003573]
[1771002662168,0.002,2054.0,2053.5,0.59003573]
[1771002662455,4.86737839,2054.5,2053.3,1.21755223]
[1771002662456,1.21684507,2054.5,2053.7,0.59003573]
[1771002662816,0.002,2054.8,2053.7,0.59003573]
[1771002663042,3.65377175,2054.2,2053.6,1.934]
[1771002663223,0.002,2054.8,2054.0,0.59003573]
[1771002663417,1.77353728,2054.7,2053.6,0.59003573]
[1771002663620,0.55479675,2054.6,2053.7,1.056]
[1771002664544,0.55479675,2054.5,2053.6,1.056]
[1771002665311,0.55679675,2054.4,2053.6,1.056]
[1771002665715,0.55679675,2054.4,2053.3,0.878]
[1771002665922,0.55679675,2054.4,2053.3,2.09554832]
[1771002666148,0.55479675,2054.3,2053.3,2.09554832]
[1771002666350,0.55479675,2054.1,2053.3,2.09554608]
[1771002667569,1.21701879,2054.2,2053.3,2.09554608]
[1771002668036,1.77179376,2054.3,2053.3,2.68558181]
[1771002668542,1.77179376,2054.3,2053.4,0.59003573]
[1771002668753,0.002,2054.4,2053.4,0.59003573]
[1771002669519,1.7736997,2054.4,2053.4,0.59003573]
[1771002669754,1.7736997,2054.4,2053.5,1.055]
[1771002670112,0.002,2054.4,2053.5,1.64503573]
[1771002670548,0.002,2054.4,2053.6,1.21737436]
[1771002671147,0.002,2054.4,2053.6,1.80741009]
[1771002671357,0.002,2054.4,2053.7,0.59003573]
[1771002672661,0.002,2054.4,2053.8,1.21725581]
[1771002672967,0.002,2054.4,2053.9,0.59003573]
[1771002673164,0.002,2054.4,2054.0,1.055]
[1771002674728,0.002,2054.4,2054.1,1.21707803]
[1771002675339,7.91251111,2054.6,2054.1,1.80711376]
[1771002675754,7.91251111,2054.6,2054.2,0.59003573]
[1771002676179,0.002,2054.8,2054.2,0.59003573]
[1771002677041,0.002,2054.8,2054.3,1.21695954]
[1771002677246,0.002,2054.8,2054.4,1.057]
[1771002679147,0.002,2055.5,2054.6,0.59003573]
[1771002680082,0.002,2055.5,2054.5,1.21684108]
[1771002680083,0.002,2055.5,2054.7,0.877]
[1771002680238,0.002,2055.5,2054.9,0.59003573]
[1771002680941,0.002,2055.5,2055.1,0.59003573]
[1771002681169,0.002,2055.8,2055.3,1.21636744]
[1771002681870,0.002,2055.8,2055.4,0.59003573]
[1771002682069,0.002,2055.8,2055.3,1.21636744]
[1771002682872,0.002,2055.8,2055.2,1.21642526]
[1771002683077,0.002,2055.8,2055.3,1.06]
[1771002683277,0.002,2055.8,2055.4,1.21630826]
[1771002683444,0.002,2055.8,2055.3,2.2763226]
[1771002684146,0.55679675,2055.6,2054.7,2.0936807]
[1771002684444,0.55679675,2055.6,2054.2,1.21701879]
[1771002684644,0.55679675,2055.6,2054.4,0.877]
[1771002685145,0.55679675,2055.6,2054.5,0.59003573]
[1771002685668,0.55679675,2055.6,2054.6,1.21678185]
[1771002685855,0.002,2055.6,2054.7,1.06]
[1771002686347,0.002,2055.6,2054.7,1.65003573]
[1771002687159,1.21819429,2055.6,2054.7,1.65003573]
[1771002687474,0.002,2055.6,2054.7,1.65003573]
[1771002687641,0.002,2055.6,2054.8,1.21666342]
[1771002688246,0.002,2055.6,2054.9,0.59003573]
[1771002689746,0.002,2055.6,2055.1,0.59003573]
[1771002689942,0.002,2055.6,2055.2,1.06]
[1771002690141,4.86298336,2056.4,2055.2,2.52703573]
[1771002690356,0.002,2055.4,2055.2,2.52703573]
[1771002690565,0.55479675,2056.3,2055.2,2.52703573]
[1771002690752,0.55479675,2056.3,2055.2,1.937]
[1771002691848,1.21583503,2056.2,2055.3,1.21636744]
[1771002692359,2.19426366,2056.2,2055.3,1.21636744]
[1771002693578,1.21582408,2056.3,2055.2,3.15338305]
[1771002694157,1.21582408,2056.3,2055.2,4.09779001]
[1771002694864,0.97842863,2056.2,2055.2,3.15338305]
[1771002696086,2.19427416,2056.2,2055.2,3.15338305]
[1771002697282,0.002,2056.5,2055.5,0.90072645]
[1771002697608,0.002,2056.5,2055.8,0.90072645]
[1771002697784,0.002,2056.5,2055.6,1.061]
[1771002697785,0.002,2056.7,2056.1,0.90072645]
[1771002698083,0.002,2056.7,2055.9,1.21601245]
[1771002698384,0.002,2056.7,2056.2,1.061]
[1771002698754,0.002,2056.7,2056.1,1.061]
[1771002700160,0.002,2056.7,2056.2,1.21583503]
[1771002700396,0.002,2056.7,2056.1,1.061]
[1771002700686,0.002,2056.7,2056.1,2.27688099]
[1771002700891,0.002,2056.7,2055.7,1.21613075]
[1771002701056,0.002,2056.7,2056.0,1.061]
[1771002701251,0.002,2056.7,2056.0,1.96172645]
[1771002701981,0.002,2056.7,2056.1,1.061]
[1771002702183,0.94174252,2056.7,2056.1,1.061]
[1771002702381,2.15733774,2056.7,2056.1,1.061]
[1771002702689,0.002,2056.5,2056.1,1.061]
[1771002703171,0.002,2056.5,2056.1,2.27688341]
[1771002703980,0.002,2056.5,2056.0,2.27793566]
[1771002704487,0.002,2056.5,2056.0,1.21693566]
[1771002704670,0.002,2056.5,2056.0,0.001]
[1771002705282,0.94174252,2056.5,2055.8,0.001]
[1771002705575,0.94174252,2056.5,2055.8,1.21705318]
[1771002706362,0.002,2056.5,2055.8,1.21705318]
[1771002706792,0.002,2056.5,2055.8,2.11777963]
[1771002706962,0.002,2056.5,2055.9,0.90072645]
[1771002707562,0.002,2056.5,2055.8,1.21705318]
[1771002708472,0.002,2056.5,2055.8,2.11777963]
[1771002709473,0.002,2056.5,2055.8,1.21705318]
[1771002709792,0.002,2056.5,2055.9,0.90072645]
[1771002711880,0.002,2056.5,2056.0,1.2159533]
[1771002712083,0.002,2056.5,2056.1,1.064]
[1771002713975,0.002,2056.5,2056.1,2.27986598]
[1771002715866,0.002,2056.5,2056.2,0.001]
[1771002716089,0.002,2056.3,2056.2,0.001]
[1771002717801,0.00066024,2056.3,2056.2,0.001]
[1771002718373,0.00066024,2056.3,2056.0,0.001]
[1771002718581,0.94174252,2056.5,2056.1,0.90072645]
[1771002718582,0.002,2056.5,2056.1,0.90072645]
[1771002718798,0.002,2056.5,2056.2,1.071]
[1771002720601,0.002,2056.5,2056.3,1.2157759]
[1771002721099,0.002,2056.7,2056.4,0.001]
[1771002721406,0.002,2057.2,2056.5,1.072]
[1771002721701,1.21724713,2057.2,2056.5,1.072]
[1771002721884,0.002,2057.2,2056.5,1.072]
[1771002722284,0.002,2057.2,2056.6,0.001]
[1771002722703,0.002,2057.2,2056.6,1.21659856]
[1771002723706,0.002,2057.2,2056.6,0.001]
[1771002725995,0.8754576,2057.2,2056.6,0.001]
[1771002726295,0.002,2057.2,2056.6,0.001]
[1771002726477,0.002,2057.2,2056.5,2.28761707]
[1771002726677,0.002,2057.2,2056.6,0.001]
[1771002727093,0.002,2057.2,2056.6,0.89296823]
[1771002727478,0.002,2057.2,2056.8,0.89196823]
[1771002727674,0.002,2057.2,2056.9,1.075]
[1771002727877,0.002,2057.2,2056.7,0.001]
[1771002728098,0.002,2057.0,2056.7,0.001]
[1771002729000,0.002,2057.0,2056.6,2.2905985]
[1771002729203,0.002,2057.0,2056.6,1.075]
[1771002729400,0.002,2057.0,2056.5,1.075]
[1771002729599,0.002,2057.0,2056.5,1.076]
[1771002730002,0.8754576,2057.0,2056.2,1.21682688]
[1771002730208,0.8734576,2056.9,2056.2,0.002]
[1771002730402,0.8734576,2056.9,2056.2,0.001]
[1771002730903,0.8734576,2056.7,2056.2,0.001]
[1771002732007,1.21548035,2056.8,2056.3,0.001]
[1771002732305,1.21544612,2056.9,2056.3,0.001]
[1771002732482,0.002,2057.0,2056.3,0.001]
[1771002732683,1.21736575,2057.0,2056.3,0.001]
[1771002732883,0.002,2057.0,2056.3,1.076]
[1771002733596,0.8754576,2057.0,2056.2,0.001]
[1771002733791,0.8754576,2057.0,2056.2,0.002]
[1771002734908,1.21542126,2056.9,2056.2,0.002]
[1771002735414,5.73706076,2057.0,2056.2,0.002]
[1771002735415,2.09085164,2057.0,2056.2,0.002]
[1771002737387,2.09085164,2057.0,2056.2,0.001]
[1771002739219,0.8734576,2056.9,2056.3,0.001]
[1771002739429,1.21739404,2057.0,2056.3,0.001]
[1771002739739,2.09085164,2057.0,2056.4,0.001]
[1771002740035,0.8734576,2056.9,2056.4,0.001]
[1771002741198,2.08893795,2056.8,2056.4,0.001]
[1771002745130,2.29845922,2056.9,2056.5,0.001]
[1771002745298,1.21738153,2057.0,2056.5,0.001]
[1771002745504,0.8754576,2057.0,2056.6,0.001]
[1771002745806,0.8754576,2057.0,2056.5,0.001]
[1771002747340,0.002,2057.0,2056.6,0.001]
[1771002747534,0.002,2057.0,2056.5,0.001]
[1771002748942,0.002,2057.0,2056.6,0.001]
[1771002749147,0.002,2057.0,2056.5,0.001]
[1771002751528,0.002,2057.0,2056.6,0.001]
[1771002752334,0.87942325,2056.9,2056.7,0.001]
[1771002752540,0.87942325,2056.9,2056.6,0.001]
[1771002752727,0.002,2057.0,2056.6,0.001]
[1771002753243,0.88142325,2057.0,2056.6,0.001]
[1771002753414,0.88142325,2057.0,2056.4,0.001]
[1771002753616,2.09484451,2056.9,2056.4,0.001]
[1771002755726,1.21741768,2057.0,2056.4,0.001]
[1771002755925,1.21736613,2057.0,2056.4,0.87737896]
[1771002756120,0.002,2057.0,2056.4,0.87737896]
[1771002756525,0.002,2057.2,2056.4,1.067]
[1771002756844,0.002,2057.2,2056.5,0.87637896]
[1771002757860,0.002,2057.2,2056.5,1.21562181]
[1771002758944,0.87102619,2057.2,2056.4,0.001]
[1771002759855,1.21530309,2057.1,2056.4,0.001]
[1771002760635,2.08432928,2057.1,2056.4,0.001]
[1771002761646,1.21530309,2057.1,2056.4,0.001]
[1771002761956,4.86321238,2057.2,2056.4,1.21671678]
[1771002762165,4.86321238,2057.2,2056.4,2.08411228]
[1771002762733,0.002,2057.2,2056.4,2.08411228]
[1771002763066,0.002,2057.2,2056.5,0.8673955]
[1771002763963,0.002,2057.2,2056.7,0.8673955]
[1771002764761,0.002,2057.0,2056.7,0.8673955]
[1771002765358,0.002,2057.0,2056.6,1.21659856]
[1771002765552,0.002,2057.0,2056.6,2.28259856]
[1771002765759,0.002,2057.0,2056.6,3.14999406]
[1771002767470,0.002,2057.0,2056.6,0.001]
[1771002769061,0.002,2057.0,2056.6,0.8683955]
[1771002770462,0.002,2057.0,2056.7,1.21553945]
[1771002770662,0.002,2057.0,2056.7,2.08293495]
[1771002770836,0.002,2057.0,2056.8,0.8673955]
[1771002771032,0.002,2057.0,2056.8,1.9373955]
[1771002772365,0.002,2057.2,2057.0,0.8673955]
[1771002772564,0.002,2057.6,2057.2,0.8673955]
[1771002772770,0.002,2057.6,2057.4,0.8673955]
[1771002773080,0.002,2058.1,2057.4,0.8673955]
[1771002773264,1.21671909,2058.1,2057.4,0.8673955]
[1771002773469,0.002,2058.1,2057.4,0.8673955]
[1771002773638,1.21672777,2058.1,2057.5,1.073]
[1771002774264,0.86902619,2058.0,2057.1,1.21530309]
[1771002774495,0.86902619,2058.0,2057.1,2.28830309]
[1771002774856,1.21483065,2057.9,2057.1,2.28830309]
[1771002775270,2.08385684,2057.9,2057.1,1.073]
[1771002775577,2.08385684,2057.9,2057.1,2.28830086]
[1771002776670,0.002,2057.4,2057.1,2.28830086]
[1771002776866,0.002,2057.4,2057.1,1.073]
[1771002777371,0.002,2057.4,2057.0,2.28831393]
[1771002779374,0.002,2057.4,2057.0,1.073]
[1771002780067,0.002,2057.4,2056.8,0.001]
[1771002780643,0.87102619,2057.4,2056.6,0.001]
[1771002781550,1.99998369,2057.3,2056.6,0.001]
[1771002782176,4.8627398,2057.4,2056.6,0.001]
[1771002782177,1.21717148,2057.4,2056.6,0.001]
[1771002782376,1.21717148,2057.4,2056.6,0.82847279]
[1771002782377,0.002,2057.4,2056.6,0.82847279]
[1771002782880,1.21712727,2057.4,2056.6,0.82847279]
[1771002783552,0.002,2057.4,2056.6,2.04405566]
[1771002784276,0.78679874,2057.4,2056.6,1.21658287]
[1771002784484,0.002,2057.4,2056.6,1.21658287]
[1771002784658,1.096,2057.4,2056.6,0.001]
[1771002784851,1.096,2057.4,2056.6,1.21659786]
[1771002785251,1.096,2057.4,2056.6,0.001]
[1771002785454,1.096,2057.4,2056.6,1.21659469]
[1771002785677,1.21518495,2057.3,2056.6,1.21659469]
[1771002785872,1.21518495,2057.3,2056.6,2.04406748]
[1771002786072,1.096,2057.4,2056.6,2.28959469]
[1771002786270,1.096,2057.4,2056.7,0.82747279]
[1771002786583,2.31112822,2057.4,2056.7,0.82747279]
[1771002786784,2.31112822,2057.4,2056.6,2.28959469]
[1771002786785,0.78479874,2057.3,2056.6,1.074]
[1771002787859,1.21524402,2057.2,2056.6,1.074]
[1771002789992,0.002,2057.4,2056.7,0.82747279]
[1771002790161,0.002,2057.4,2056.8,0.001]
[1771002790357,0.002,2057.4,2056.8,0.82847279]
[1771002790761,1.21712995,2057.4,2056.8,0.82847279]
[1771002791002,1.21712995,2057.4,2056.8,0.001]
[1771002791294,0.002,2057.4,2056.8,0.001]
[1771002791506,0.002,2057.4,2056.8,0.82847279]
[1771002791713,1.21713079,2057.4,2056.8,0.82847279]
[1771002791910,0.002,2057.4,2056.8,0.82847279]
[1771002792212,0.002,2057.4,2056.9,1.21542126]
[1771002792615,0.002,2057.4,2057.0,0.82747279]
[1771002792917,0.002,2057.4,2057.1,1.072]
[1771002793091,0.002,2057.4,2057.1,1.89947279]
[1771002794109,0.002,2057.4,2057.2,2.04271681]
[1771002794307,0.002,2057.4,2057.2,1.21524402]
[1771002794813,0.002,2057.4,2057.3,0.82747279]
[1771002795181,0.002,2057.6,2057.4,0.82747279]
[1771002795406,0.002,2058.1,2057.5,1.90247279]
[1771002795713,0.004,2058.0,2057.5,1.90247279]
[1771002796300,0.004,2058.0,2057.6,1.21500777]
[1771002796506,0.004,2058.0,2057.5,1.90247279]
[1771002796720,0.004,2057.9,2057.5,1.075]
[1771002796888,0.004,2058.0,2057.5,1.075]
[1771002797093,0.78879874,2058.0,2057.3,1.076]
[1771002797315,0.004,2057.9,2057.3,1.076]
[1771002797515,0.78479874,2058.0,2057.3,1.076]
[1771002797685,0.004,2057.9,2057.3,1.076]
[1771002799116,1.21483065,2057.9,2057.3,1.076]
[1771002799312,0.004,2057.8,2057.3,1.076]
[1771002799520,0.004,2057.8,2057.3,2.29118133]
[1771002800089,0.004,2057.8,2057.3,1.076]
[1771002800290,0.004,2057.8,2057.3,2.29117641]
[1771002801202,0.004,2057.7,2057.3,2.29117641]
[1771002801517,5.6457887,2058.1,2057.3,2.29117641]
[1771002801821,0.004,2058.0,2057.3,1.076]
[1771002802022,0.78879874,2058.0,2057.3,2.29118307]
[1771002802218,0.002,2057.7,2057.3,2.29118307]
[1771002802803,0.002,2057.7,2057.3,3.11865586]
[1771002803002,0.006,2057.7,2057.3,3.11865586]
[1771002803415,0.006,2057.7,2057.4,0.82747279]
[1771002803416,0.002,2057.7,2057.4,0.82747279]
[1771002805126,0.002,2057.7,2057.5,2.04253961]
[1771002807517,0.002,2057.7,2057.6,1.083]
[1771002807723,0.004,2057.6,2057.2,1.084]
[1771002808131,0.002,2057.9,2057.2,1.91147279]
[1771002809322,0.002,2057.9,2057.2,1.084]
[1771002810028,0.002,2057.9,2057.3,1.21518495]
[1771002810626,0.78679874,2057.9,2057.2,2.29923173]
[1771002810922,0.002,2057.9,2057.2,2.29923173]
[1771002811130,0.75813698,2057.9,2057.2,1.084]
[1771002811429,0.002,2057.9,2057.3,0.77346679]
[1771002812008,0.002,2057.9,2057.4,1.21512588]
[1771002812931,0.75813698,2057.9,2057.2,2.29920966]
[1771002814128,0.002,2057.9,2057.2,2.29920966]
[1771002814631,0.002,2057.9,2057.5,0.001]
[1771002814929,0.002,2057.9,2057.6,0.77346679]
[1771002815432,0.002,2058.1,2057.7,0.77346679]
[1771002816733,0.002,2058.1,2057.8,1.21488968]
[1771002816904,0.002,2058.1,2057.6,1.086]
[1771002817104,0.002,2058.1,2057.6,2.30097703]
[1771002817305,0.002,2058.1,2057.6,1.086]
[1771002817826,0.002,2058.1,2057.6,3.06478857]
[1771002818128,0.002,2058.1,2057.6,2.30100183]
[1771002819009,0.002,2058.1,2057.6,3.06478857]
[1771002821526,0.002,2058.1,2057.6,2.30100183]
[1771002823821,0.002,2058.1,2057.7,0.76378674]
[1771002824932,0.002,2058.1,2057.6,2.30100183]
[1771002825129,0.002,2058.1,2056.8,0.001]
[1771002825130,9.94667872,2057.7,2056.8,0.001]
[1771002825432,0.74988189,2057.4,2056.8,0.001]
[1771002825632,1.83588189,2057.4,2056.8,0.001]
[1771002825848,0.74988189,2057.4,2056.8,0.001]
[1771002826046,4.86026731,2057.6,2056.8,0.001]
[1771002826047,1.21503186,2057.6,2056.8,0.001]
[1771002826650,0.74988189,2057.5,2056.8,0.001]
[1771002827522,1.21512588,2057.4,2056.8,0.001]
[1771002827923,1.21512588,2057.4,2057.0,0.001]
[1771002828161,1.21511296,2057.5,2057.0,0.001]
[1771002829679,1.21511296,2057.5,2056.8,0.001]
[1771002829844,4.86012141,2057.6,2056.8,0.001]
[1771002830438,5.6100033,2057.6,2056.8,0.001]
[1771002830654,1.21500777,2057.6,2056.8,0.76478674]
[1771002831826,4.85992184,2057.7,2056.9,1.21542126]